bitfinex-derivatives/quotes_ETHF0:USTF0_20250213
["timestamp","ask_amount","ask_price","bid_price","bid_amount"]
[1739466537737,3.2078,2640.0,2639.5,1.34567548]
[1739466537937,3.2078,2639.7,2639.5,0.58808548]
[1739466538137,3.2078,2639.7,2639.6,0.75758]
[1739466538544,3.2078,2639.7,2639.5,1.34567548]
[1739466539138,0.7575,2639.9,2639.5,1.34567548]
[1739466539139,3.2078,2640.0,2639.5,0.58808548]
[1739466539534,0.7575,2639.9,2639.6,0.75758]
[1739466539737,3.2078,2640.0,2639.7,0.75753]
[1739466540249,3.2078,2640.0,2639.5,0.58808548]
[1739466540743,3.2078,2640.0,2639.5,0.00568548]
[1739466540944,0.75753,2639.8,2639.5,0.00568548]
[1739466541143,0.75758,2639.6,2639.5,0.00568548]
[1739466541548,0.75769,2639.2,2639.1,3.38955241]
[1739466541845,3.2078,2639.2,2639.1,4.14727241]
[1739466542453,3.2078,2639.2,2639.1,3.38955241]
[1739466542652,0.75777,2639.0,2638.9,0.00568548]
[1739466543050,0.75773,2639.1,2638.9,0.76344548]
[1739466543249,3.2078,2639.2,2638.9,0.00568548]
[1739466543250,0.75775,2639.0,2638.9,0.00568548]
[1739466543948,3.2078,2639.2,2639.1,0.75772]
[1739466544157,3.2078,2639.2,2638.9,0.00568548]
[1739466544358,3.96551,2639.2,2639.0,0.75774]
[1739466544852,3.2078,2639.2,2639.1,0.75772]
[1739466545355,3.2078,2639.2,2639.1,4.14727241]
[1739466545752,3.2078,2639.4,2639.1,3.38955241]
[1739466545959,0.75761,2639.5,2639.1,3.38955241]
[1739466546152,3.2078,2639.4,2639.3,0.75765]
[1739466546656,0.75769,2639.3,2639.1,4.14726241]
[1739466546855,0.75769,2639.2,2639.1,3.38955241]
[1739466547153,3.2078,2639.4,2638.9,0.00568548]
[1739466547456,3.2078,2639.1,2639.0,0.75775]
[1739466547658,3.73813303,2639.4,2638.9,0.00568548]
[1739466547850,3.73813303,2639.4,2639.3,0.75766]
[1739466548050,3.2078,2639.4,2639.3,0.75766]
[1739466548463,3.2078,2639.4,2638.9,0.00568548]
[1739466548658,3.2078,2639.4,2639.1,4.14726241]
[1739466548855,3.2078,2639.4,2639.1,3.38955241]
[1739466549159,3.2078,2639.4,2639.1,4.14726241]
[1739466549455,0.75769,2639.2,2639.1,4.14726241]
[1739466549657,0.75769,2639.2,2639.1,3.38955241]
[1739466550156,3.2078,2639.4,2639.3,0.75766]
[1739466551160,3.96544,2639.4,2639.3,0.75766]
[1739466551359,3.2078,2639.4,2639.3,0.75766]
[1739466551555,3.2078,2639.7,2639.2,0.5768]
[1739466551757,3.2078,2639.7,2639.6,0.75758]
[1739466554151,3.2078,2639.7,2639.5,3.38955241]
[1739466554660,3.96537,2639.7,2639.5,3.38955241]
[1739466554851,3.96537,2639.7,2639.5,4.14713241]
[1739466555051,3.96537,2639.7,2639.5,4.14714241]
[1739466555555,3.2078,2639.7,2639.6,0.75758]
[1739466555752,3.2078,2640.0,2639.9,0.75749]
[1739466556353,0.75739,2640.3,2640.2,0.75741]
[1739466556354,0.52989007,2640.3,2640.2,0.75741]
[1739466557057,3.2078,2640.4,2640.3,0.75738]
[1739466559360,3.96517,2640.4,2640.2,0.5956]
[1739466559554,3.2078,2640.4,2640.3,0.75738]
[1739466559855,3.2078,2640.4,2640.1,3.38955241]
[1739466559856,0.75738,2640.3,2640.1,3.38955241]
[1739466560056,0.75738,2640.3,2640.2,0.75741]
[1739466560258,3.2078,2640.4,2640.1,3.38955241]
[1739466560558,0.75739,2640.3,2640.1,4.14696241]
[1739466560761,3.2078,2640.4,2640.0,0.5549]
[1739466561054,0.75749,2639.9,2639.8,4.14706241]
[1739466561256,3.2078,2640.1,2639.6,0.5705]
[1739466561452,3.96535,2639.7,2639.6,0.5705]
[1739466561654,4.49464729,2639.7,2639.6,0.5705]
[1739466561958,4.49464729,2639.7,2639.5,3.97885241]
[1739466561959,0.75758,2639.6,2639.5,3.38955241]
[1739466562458,0.75766,2639.3,2639.2,3.96005241]
[1739466562759,3.96546,2639.3,2639.2,0.5705]
[1739466562960,3.2078,2639.3,2639.2,0.5705]
[1739466563161,3.2078,2639.3,2639.2,1.32819]
[1739466563460,3.73709729,2639.3,2639.2,1.32819]
[1739466563758,3.73709729,2639.3,2639.2,4.71774241]
[1739466563953,3.73709729,2639.3,2639.2,3.96005241]
[1739466564157,3.2078,2639.3,2639.2,4.71774241]
[1739466564353,3.2078,2639.3,2639.2,3.96005241]
[1739466564554,3.96546,2639.3,2639.2,3.96005241]
[1739466564754,3.73709729,2639.3,2639.2,4.71774241]
[1739466564957,3.73709729,2639.3,2639.2,3.96005241]
[1739466565159,3.96546,2639.3,2639.2,3.96005241]
[1739466565555,3.73709729,2639.3,2638.9,3.39523789]
[1739466565754,0.75774,2639.1,2638.9,4.15300789]
[1739466565956,3.73709729,2639.3,2638.9,3.39523789]
[1739466566161,0.75771,2639.2,2639.0,0.75775]
[1739466566362,1.28700729,2639.2,2638.9,3.39523789]
[1739466566560,1.28700729,2639.2,2638.9,4.15299789]
[1739466566561,0.75773,2639.1,2638.9,4.15299789]
[1739466566765,3.96555,2639.0,2638.9,3.39523789]
[1739466566964,3.2078,2639.0,2638.9,3.39523789]
[1739466567265,3.2078,2639.0,2638.9,4.15301789]
[1739466567664,3.96555,2639.0,2638.9,0.00568548]
[1739466568363,4.49484729,2639.0,2638.9,0.00568548]
[1739466568563,3.96555,2639.0,2638.9,0.00568548]
[1739466570168,3.2078,2639.0,2638.9,0.00568548]
[1739466570564,3.2078,2639.0,2638.9,0.76346548]
[1739466571770,3.2078,2639.0,2638.9,0.00568548]
[1739466571974,3.2078,2639.0,2638.9,0.76346548]
[1739466572164,3.96555,2639.0,2638.9,0.00568548]
[1739466573673,3.2078,2639.0,2638.9,0.76346548]
[1739466574668,3.2078,2639.0,2638.9,0.00568548]
[1739466574868,3.96555,2639.0,2638.9,0.76346548]
[1739466575371,3.96555,2639.0,2638.9,0.00568548]
[1739466579675,0.75791,2638.5,2638.4,0.75792]
[1739466579863,3.2078,2638.5,2638.4,0.75792]
[1739466580966,3.96569,2638.5,2638.3,3.94865241]
[1739466581177,0.75792,2638.4,2638.3,0.5591]
[1739466581374,0.75795,2638.3,2638.2,0.00568548]
[1739466583278,0.82389312,2638.3,2638.2,0.00568548]
[1739466583470,0.75795,2638.3,2638.2,0.00568548]
[1739466587881,0.75795,2638.3,2638.2,0.76366548]
[1739466588273,0.75795,2638.3,2638.2,0.00568548]
[1739466588473,0.75794,2638.4,2638.3,0.75794]
[1739466588676,3.2078,2638.5,2638.4,0.75792]
[1739466589083,3.96569,2638.5,2638.4,0.75792]
[1739466589286,3.2078,2638.5,2638.4,0.75792]
[1739466589479,3.96569,2638.5,2638.4,1.94442]
[1739466589679,3.2078,2638.5,2638.4,1.94442]
[1739466590279,3.96569,2638.5,2638.4,1.94442]
[1739466590474,3.96569,2638.5,2638.4,1.1865]
[1739466591881,0.75795,2638.3,2638.2,0.00568548]
[1739466592478,0.75794,2638.4,2638.3,0.75794]
[1739466592692,0.75795,2638.3,2638.2,0.00568548]
[1739466592981,0.82389164,2638.3,2638.2,0.00568548]
[1739466594079,0.75795,2638.3,2638.2,0.00568548]
[1739466594289,0.82388995,2638.3,2638.2,0.00568548]
[1739466595182,0.06593995,2638.3,2638.2,0.76366548]
[1739466595391,0.75795,2638.3,2638.2,0.00568548]
[1739466595585,0.75795,2638.3,2638.2,0.57618548]
[1739466596281,5.0048,2638.5,2638.2,1.33416548]
[1739466596477,0.75795,2638.3,2638.2,0.57618548]
[1739466596681,0.82389121,2638.3,2638.2,0.57618548]
[1739466596878,0.82389142,2638.3,2638.2,0.57618548]
[1739466597279,0.82389142,2638.3,2638.2,0.00568548]
[1739466597983,1.35404536,2638.3,2638.2,0.00568548]
[1739466598486,0.75807,2637.9,2637.8,0.5705]
[1739466598682,3.96587,2637.9,2637.8,0.5705]
[1739466599095,3.2078,2637.9,2637.8,1.3286]
[1739466599285,3.2078,2637.9,2637.8,0.5705]
[1739466599584,3.2078,2637.9,2637.8,1.3286]
[1739466600282,3.2078,2638.2,2637.8,0.5705]
[1739466600488,3.2078,2638.2,2638.1,0.75801]
[1739466601384,0.75804,2638.0,2637.9,0.6021]
[1739466601592,0.75803,2638.1,2637.9,0.75805]
[1739466601787,0.00568548,2638.7,2638.0,5.18655241]
[1739466601982,3.2078,2639.4,2638.6,3.38955241]
[1739466602182,3.2078,2639.4,2638.9,3.38955241]
[1739466602487,3.2078,2639.1,2639.0,0.75775]
[1739466602688,3.2078,2639.5,2638.9,5.28398241]
[1739466602900,3.2078,2639.2,2638.9,3.38955241]
[1739466603086,3.2078,2639.2,2639.1,0.75772]
[1739466603881,3.2078,2639.2,2638.9,0.00568548]
[1739466604296,3.2078,2639.2,2639.1,0.75772]
[1739466604987,0.00568548,2639.5,2639.1,0.75772]
[1739466605195,0.00568548,2639.5,2639.2,1.31528]
[1739466605196,3.97109548,2639.5,2639.2,1.31528]
[1739466605486,3.97109548,2639.5,2639.2,0.5576]
[1739466605487,3.21348548,2639.5,2639.2,0.5576]
[1739466605687,3.21348548,2639.5,2639.2,1.31528]
[1739466605997,3.97109548,2639.5,2639.2,1.31528]
[1739466606199,3.97109548,2639.5,2639.2,0.5576]
[1739466606397,3.21348548,2639.5,2639.2,0.5576]
[1739466606697,0.75766,2639.4,2639.2,0.5576]
[1739466607392,3.21348548,2639.5,2639.2,0.5576]
[1739466607791,0.75773,2639.1,2638.9,0.00568548]
[1739466607992,3.96555,2639.0,2638.9,0.00568548]
[1739466608595,4.03147296,2639.0,2638.9,0.00568548]
[1739466609095,0.7578,2638.9,2638.6,0.75785]
[1739466609297,3.2078,2638.7,2638.5,0.75788]
[1739466609496,3.2078,2638.7,2638.4,0.5847]
[1739466609897,3.2078,2638.7,2638.5,0.75789]
[1739466610200,0.75789,2638.5,2638.4,0.5847]
[1739466610399,0.75792,2638.4,2638.3,0.00568548]
[1739466610698,5.76172,2638.4,2638.3,0.00568548]
[1739466610899,5.0038,2638.4,2638.3,0.00568548]
[1739466611505,1.796,2638.5,2638.3,0.00568548]
[1739466611800,1.796,2638.5,2638.4,0.75792]
[1739466612196,3.2078,2638.7,2638.6,0.75787]
[1739466612589,3.2078,2638.7,2638.6,4.14742241]
[1739466613202,3.2078,2639.0,2638.6,4.14742241]
[1739466613407,3.2078,2639.3,2638.9,3.38955241]
[1739466613608,3.2078,2639.3,2639.2,4.14724241]
[1739466614513,0.00568548,2639.5,2639.2,3.38955241]
[1739466614711,0.00568548,2639.5,2639.4,0.75764]
[1739466616809,3.2078,2639.6,2639.5,0.75761]
[1739466617010,3.2078,2639.6,2639.5,4.69972406]
[1739466617617,3.2078,2639.6,2639.5,3.94211406]
[1739466617811,3.2078,2639.6,2639.5,0.75761]
[1739466618018,0.75763,2639.5,2639.3,0.6024]
[1739466618216,3.96539,2639.6,2639.3,1.36004]
[1739466618412,3.2078,2639.6,2639.3,1.36004]
[1739466618609,3.96539,2639.6,2639.3,1.36004]
[1739466618810,3.2078,2639.6,2639.4,0.75762]
[1739466619011,3.2078,2639.6,2639.3,0.6024]
[1739466619419,3.2078,2639.6,2639.0,0.5539]
[1739466619719,3.2078,2639.4,2639.0,0.5539]
[1739466619915,3.96546,2639.4,2639.0,1.1108]
[1739466620215,3.2078,2639.1,2639.0,1.1108]
[1739466620423,3.2078,2639.1,2639.0,0.75775]
[1739466620920,3.2078,2639.1,2638.6,5.09521406]
[1739466621319,3.2078,2638.8,2638.7,0.75782]
[1739466621520,3.2078,2638.8,2638.6,1.1531]
[1739466621925,3.2078,2638.8,2638.6,1.91094]
[1739466622612,3.73640199,2638.8,2638.6,1.1531]
[1739466623013,3.2078,2638.8,2638.7,0.75784]
[1739466624017,3.2078,2639.4,2638.7,3.2078]
[1739466624222,3.2078,2639.4,2639.3,0.75766]
[1739466624521,3.73640199,2639.4,2638.9,3.94211406]
[1739466624823,3.2078,2639.4,2639.3,0.75766]
[1739466625123,3.2078,2639.4,2639.1,0.5629]
[1739466625124,0.52860199,2639.6,2639.5,0.75761]
[1739466625917,3.73640199,2639.7,2639.6,0.75758]
[1739466626524,3.2078,2639.7,2639.6,0.75758]
[1739466627120,3.2078,2639.7,2639.3,0.5622]
[1739466627329,0.75759,2639.6,2639.4,0.75762]
[1739466627624,0.75759,2639.6,2639.3,0.5622]
[1739466627824,3.2078,2639.4,2639.3,1.31985]
[1739466628119,3.2078,2639.4,2638.9,3.94211406]
[1739466628322,0.75778,2638.9,2638.8,0.5944]
[1739466628521,3.2078,2639.0,2638.8,0.5944]
[1739466628725,3.2078,2639.0,2638.9,0.75778]
[1739466629523,3.2078,2639.3,2638.9,3.94211406]
[1739466629831,3.2078,2639.3,2639.2,0.75769]
[1739466630123,3.2078,2639.6,2639.5,0.75761]
[1739466631224,3.2078,2639.6,2639.4,0.5745]
[1739466631923,3.2078,2639.6,2639.5,0.75761]
[1739466632527,3.2078,2639.6,2639.4,1.33212]
[1739466632729,3.2078,2639.6,2639.4,1.33211]
[1739466633129,3.96538,2639.6,2639.4,1.33211]
[1739466633628,3.2078,2639.6,2639.5,0.75761]
[1739466634526,3.2078,2639.6,2639.5,4.69972406]
[1739466635829,3.2078,2639.6,2639.5,0.75761]
[1739466636223,3.2078,2639.6,2639.4,0.5745]
[1739466636430,3.2078,2639.6,2639.5,0.75761]
[1739466636629,0.75761,2639.5,2639.4,1.33213]
[1739466636830,3.2078,2639.6,2639.5,0.75761]
[1739466638926,3.2078,2639.6,2639.5,4.69972406]
[1739466639635,0.00568548,2639.8,2639.5,10.14387294]
[1739466639830,0.00568548,2639.8,2639.7,0.75755]
[1739466640136,0.00568548,2639.8,2639.5,3.38626294]
[1739466640343,3.96538,2639.6,2639.5,3.38626294]
[1739466640530,3.2078,2639.6,2639.4,1.33212]
[1739466640729,0.75761,2639.5,2639.4,1.33212]
[1739466640934,3.73724264,2639.6,2639.4,0.5745]
[1739466641133,4.49483264,2639.6,2639.5,0.75761]
[1739466641337,3.73724264,2639.6,2639.4,0.5745]
[1739466641535,3.73724264,2639.6,2639.5,0.75761]
[1739466641737,3.96538,2639.6,2639.5,0.75761]
[1739466642137,3.96538,2639.6,2639.4,1.33211]
[1739466642436,4.49482264,2639.6,2639.4,1.33211]
[1739466642831,1.28705264,2639.5,2639.4,1.33211]
[1739466643032,1.28705264,2639.5,2639.4,0.5745]
[1739466643231,1.28705264,2639.5,2639.3,0.75765]
[1739466643432,3.2078,2639.6,2639.2,3.38626294]
[1739466643636,3.96539,2639.6,2639.4,0.75762]
[1739466643838,3.2078,2639.6,2639.0,1.105]
[1739466644030,3.2078,2639.3,2639.2,0.75769]
[1739466645339,3.96548,2639.3,2639.1,0.75771]
[1739466645535,3.2078,2639.3,2639.0,1.105]
[1739466645736,3.2078,2639.3,2639.2,0.75769]
[1739466646337,3.2078,2639.3,2639.2,4.14395294]
[1739466646842,0.53053353,2639.7,2639.2,4.14395294]
[1739466646843,3.73833353,2639.7,2639.6,0.75758]
[1739466647237,0.00568548,2639.8,2639.7,0.75755]
[1739466647636,0.5303506,2640.0,2639.7,0.75755]
[1739466647840,0.5303506,2640.0,2639.9,4.14375294]
[1739466648140,0.5303506,2640.2,2640.1,0.75469933]
[1739466648346,3.2078,2640.3,2640.2,0.75741]
[1739466648643,1.15963,2640.5,2640.4,0.75735]
[1739466649238,1.15963,2640.5,2640.4,4.14361294]
[1739466649735,1.15963,2640.5,2640.4,4.69575147]
[1739466650145,1.91695,2640.5,2640.4,3.93840147]
[1739466650343,1.15963,2640.5,2640.4,0.75735]
[1739466651241,1.91697,2640.5,2640.3,0.5827]
[1739466651543,4.36743,2640.5,2640.3,0.5827]
[1739466651738,4.36743,2640.5,2640.2,0.55288548]
[1739466651941,0.75738,2640.3,2640.2,0.55288548]
[1739466652135,0.75738,2640.3,2640.2,0.00568548]
[1739466652532,1.35608,2640.3,2640.2,0.00568548]
[1739466653546,1.70800162,2640.4,2640.2,0.00568548]
[1739466653547,1.11440162,2640.4,2640.2,0.76309548]
[1739466653741,0.52940162,2640.4,2640.3,0.75738]
[1739466654643,1.15963,2640.5,2640.3,3.2078]
[1739466654841,1.15963,2640.5,2640.4,1.33165]
[1739466655235,1.15963,2640.5,2640.2,0.76308548]
[1739466655236,0.75737,2640.4,2640.2,0.76308548]
[1739466655440,0.75738,2640.3,2640.2,0.00568548]
[1739466656046,0.52905084,2640.4,2640.2,0.00568548]
[1739466656246,1.28641084,2640.4,2640.2,0.76307548]
[1739466656445,0.52905084,2640.4,2640.2,0.00568548]
[1739466656841,1.28640084,2640.4,2640.2,0.76308548]
[1739466657042,1.28640084,2640.4,2640.2,0.00568548]
[1739466657241,0.52905084,2640.4,2640.2,0.00568548]
[1739466657548,0.52905084,2640.4,2640.3,0.75738]
[1739466657938,1.15963,2640.5,2640.4,0.75735]
[1739466658143,1.91698,2640.5,2640.3,1.34457]
[1739466658442,4.36743,2640.5,2640.4,0.75735]
[1739466658641,5.12475,2640.5,2640.3,1.34456]
[1739466659045,4.36743,2640.5,2640.4,0.75735]
[1739466659351,0.75736,2640.4,2640.2,0.76307548]
[1739466659650,0.75738,2640.3,2640.2,0.00568548]
[1739466660744,4.36743,2640.5,2640.2,0.00568548]
[1739466660946,0.75738,2640.3,2640.2,0.00568548]
[1739466662750,0.8232667,2640.3,2640.2,0.00568548]
[1739466663251,6.0658867,2640.3,2638.9,3.93840147]
[1739466663451,3.2078,2639.3,2638.9,5.04810147]
[1739466663644,3.2078,2639.3,2639.2,0.75769]
[1739466663853,3.2078,2639.6,2639.2,3.93840147]
[1739466664055,3.96538,2639.6,2639.3,0.75765]
[1739466664247,3.2078,2639.6,2639.2,3.93840147]
[1739466664447,3.2078,2639.6,2639.3,0.75765]
[1739466664748,0.75761,2639.5,2639.2,4.69607147]
[1739466665150,3.2078,2639.3,2639.2,4.69607147]
[1739466665344,3.2078,2639.3,2639.1,0.00568548]
[1739466665545,3.2078,2639.3,2639.2,0.75769]
[1739466666043,3.21348548,2639.7,2639.1,0.00568548]
[1739466666245,3.21348548,2639.7,2639.2,5.83264147]
[1739466666445,3.21348548,2639.7,2639.6,0.75758]
[1739466667145,3.21348548,2639.7,2639.6,1.33258]
[1739466667346,0.7576,2639.6,2639.3,0.75765]
[1739466667646,3.21348548,2639.7,2639.2,3.93840147]
[1739466667845,3.2078,2639.4,2639.3,0.75765]
[1739466668247,3.2078,2639.4,2639.2,3.93840147]
[1739466668442,3.2078,2639.4,2639.1,0.00568548]
[1739466668847,0.75769,2639.2,2639.1,0.00568548]
[1739466669156,0.75769,2639.3,2639.1,0.00568548]
[1739466669352,3.2078,2639.4,2639.1,0.00568548]
[1739466669745,0.75767,2639.3,2639.1,0.00568548]
[1739466670055,0.75766,2639.3,2639.1,0.76339548]
[1739466670249,0.75769,2639.2,2639.1,0.00568548]
[1739466670846,3.2078,2639.4,2639.1,0.00568548]
[1739466671053,3.2078,2639.4,2639.3,0.75766]
[1739466671654,3.21348548,2639.7,2639.6,0.75758]
[1739466672153,3.21348548,2639.7,2639.6,41.55758]
[1739466672754,3.21348548,2639.7,2639.6,0.75758]
[1739466675052,0.00568548,2639.7,2639.6,0.75758]
[1739466678258,3.96518,2640.3,2640.2,0.75741]
[1739466678956,0.75743,2640.2,2640.1,0.75742]
[1739466679557,3.2078,2640.3,2640.0,0.5772]
[1739466679755,0.75743,2640.2,2640.1,0.75742]
[1739466679955,0.75743,2640.2,2640.0,0.5772]
[1739466679956,3.2078,2640.3,2640.0,0.5772]
[1739466680156,3.2078,2640.3,2640.2,0.75741]
[1739466680358,3.2078,2640.3,2640.0,0.5772]
[1739466680559,3.96519,2640.3,2640.2,0.75741]
[1739466681357,3.2078,2640.3,2640.0,0.5772]
[1739466681558,3.2078,2640.3,2639.2,3.93840147]
[1739466681763,3.2078,2639.8,2639.3,0.5753]
[1739466681954,3.96534,2639.8,2639.3,0.5753]
[1739466682157,3.2078,2639.8,2639.7,0.75755]
[1739466682453,3.2078,2639.8,2639.3,0.5753]
[1739466682859,3.2078,2639.8,2639.7,0.75755]
[1739466683051,3.2078,2639.8,2639.3,0.5753]
[1739466683961,3.2078,2639.4,2639.3,0.5753]
[1739466684261,3.96543,2639.4,2639.3,0.5753]
[1739466684458,0.75767,2639.3,2639.1,0.00568548]
[1739466684659,3.96545,2639.4,2639.1,0.76338548]
[1739466684858,0.75768,2639.3,2639.1,0.00568548]
[1739466685056,0.75769,2639.2,2639.1,0.00568548]
[1739466685253,3.2078,2639.4,2639.1,0.00568548]
[1739466685764,0.75766,2639.3,2639.1,0.00568548]
[1739466685957,3.2078,2639.4,2639.1,0.00568548]
[1739466686158,3.96544,2639.4,2639.1,0.76338548]
[1739466686360,3.2078,2639.7,2639.2,3.93840147]
[1739466686565,3.2078,2639.7,2639.6,0.75758]
[1739466686762,3.2078,2639.7,2639.2,3.93840147]
[1739466686968,1.793,2640.1,2639.4,1.33273]
[1739466687186,3.2078,2639.5,2639.4,0.5751]
[1739466687464,3.2078,2639.5,2639.4,0.75764]
[1739466687659,3.96541,2639.5,2639.3,0.75764]
[1739466687860,3.2078,2639.5,2639.1,0.76339548]
[1739466688061,3.2078,2639.2,2639.1,0.76339548]
[1739466688458,3.96549,2639.2,2639.1,0.00568548]
[1739466688659,3.2078,2639.2,2639.1,0.00568548]
[1739466689063,3.2078,2639.2,2639.1,0.76340548]
[1739466691470,3.96549,2639.2,2639.1,0.00568548]
[1739466692381,3.2078,2639.2,2639.1,0.76340548]
[1739466692768,3.96549,2639.2,2639.1,0.00568548]
[1739466692974,3.2078,2639.2,2639.1,0.76340548]
[1739466693380,3.96549,2639.2,2639.1,0.00568548]
[1739466695179,3.96549,2639.2,2639.1,0.76340548]
[1739466695180,3.2078,2639.2,2639.1,0.76340548]
[1739466697387,3.96549,2639.2,2639.1,0.76340548]
[1739466697590,3.96549,2639.2,2639.1,0.00568548]
[1739466699583,3.96549,2639.2,2638.8,0.7578]
[1739466699584,1.89431,2639.1,2638.5,0.75788]
[1739466699779,1.89431,2639.1,2638.3,4.51400147]
[1739466699780,3.96566,2638.6,2638.4,1.322]
[1739466699986,3.96567,2638.6,2638.5,0.75789]
[1739466700286,0.75789,2638.5,2638.4,0.5641]
[1739466700485,0.75789,2638.5,2638.3,0.568]
[1739466700680,5.0008,2638.6,2637.7,3.93840147]
[1739466700882,3.2078,2638.3,2638.2,0.75798]
[1739466701089,3.2078,2638.6,2638.2,0.5496]
[1739466701288,3.2078,2638.6,2638.4,0.7579]
[1739466701489,3.2078,2638.6,2638.5,0.75789]
[1739466701684,0.00568548,2638.7,2638.6,0.75786]
[1739466701885,0.00568548,2638.7,2638.3,4.50060147]
[1739466702083,0.00568548,2638.7,2638.5,0.75788]
[1739466702287,0.00568548,2638.7,2638.3,4.50060147]
[1739466702288,0.00568548,2638.7,2638.6,0.75786]
[1739466702892,0.00568548,2638.7,2638.6,4.69626147]
[1739466703290,0.00568548,2638.7,2638.6,0.75786]
[1739466703484,0.00568548,2638.7,2638.3,4.50060147]
[1739466703692,3.2078,2638.5,2638.3,4.50060147]
[1739466703892,3.2078,2638.5,2638.3,0.5622]
[1739466704093,3.2078,2638.5,2638.4,0.75792]
[1739466704600,0.00568548,2638.7,2638.6,0.75786]
[1739466704896,0.00568548,2638.7,2638.4,0.7579]
[1739466705192,0.00568548,2638.7,2638.2,0.5496]
[1739466705193,0.75795,2638.3,2638.2,0.5496]
[1739466705501,3.2078,2638.3,2637.4,3.93840147]
[1739466705693,3.2078,2637.8,2637.6,0.75814]
[1739466705899,3.96591,2637.8,2637.4,44.73840147]
[1739466706101,3.96591,2637.8,2637.5,0.75818]
[1739466706296,3.96591,2637.8,2637.5,0.75816]
[1739466706799,3.2078,2637.8,2637.4,0.00568548]
[1739466706998,3.2078,2637.5,2637.4,0.00568548]
[1739466707393,3.96598,2637.5,2637.4,0.00568548]
[1739466708308,3.2078,2637.5,2636.7,0.5834]
[1739466708595,0.75844,2636.6,2636.2,1.05676554]
[1739466708897,0.75844,2636.6,2636.0,41.3834]
[1739466708898,3.2078,2636.5,2636.0,41.3834]
[1739466709395,3.2078,2636.5,2636.3,0.75851]
[1739466709697,3.21348548,2636.5,2636.4,0.7585]
[1739466710196,0.00568548,2636.5,2636.4,0.7585]
[1739466712900,3.2078,2637.2,2636.4,0.7585]
[1739466713097,3.2078,2637.2,2637.1,0.7583]
[1739466713294,3.2078,2637.2,2636.7,3.93840147]
[1739466713497,3.2078,2637.2,2637.1,0.7583]
[1739466713696,3.2078,2637.5,2636.7,5.73240147]
[1739466713898,3.966,2637.5,2637.2,0.75825]
[1739466714201,0.00568548,2637.4,2637.3,0.75824]
[1739466720506,0.00568548,2637.4,2637.1,0.5628]
[1739466720798,0.00568548,2637.4,2637.3,0.75824]
[1739466721198,0.75826,2637.3,2637.1,1.32109]
[1739466721498,0.00568548,2637.4,2637.3,0.75824]
[1739466722403,0.00568548,2637.4,2637.3,4.69664147]
[1739466722702,3.2078,2638.0,2637.9,0.75807]
[1739466723106,3.2078,2638.4,2638.3,0.75795]
[1739466723412,3.2078,2638.4,2638.2,0.75796]
[1739466723600,0.75797,2638.3,2638.0,0.551]
[1739466723907,3.2078,2638.4,2638.0,0.55668548]
[1739466724206,0.75797,2638.3,2638.1,0.758]
[1739466724513,0.75796,2638.3,2638.1,0.758]
[1739466724896,0.75797,2638.3,2638.0,0.00568548]
[1739466725101,3.2078,2638.1,2638.0,0.76372548]
[1739466725401,3.2078,2638.4,2638.0,0.76372548]
[1739466725605,3.2078,2638.4,2638.3,0.75795]
[1739466726000,3.2078,2638.4,2638.0,0.76372548]
[1739466726001,0.00568548,2638.6,2638.5,0.75789]
[1739466729708,3.2078,2639.3,2638.5,3.93840147]
[1739466729907,3.2078,2639.3,2639.1,0.7577]
[1739466730107,3.2078,2639.3,2638.6,2.48751]
[1739466730607,3.2078,2639.3,2639.2,0.75769]
[1739466731016,0.00568548,2639.5,2639.4,0.75763]
[1739466731505,0.00568548,2639.5,2639.4,4.69603147]
[1739466734110,3.2078,2640.0,2639.9,0.75749]
[1739466738316,3.96528,2640.0,2639.9,0.75749]
[1739466738609,3.2078,2640.0,2639.9,0.75749]
[1739466739711,3.96526,2640.0,2639.9,0.75749]
[1739466740007,0.7575,2639.9,2639.8,0.7575]
[1739466740207,0.75757,2639.7,2639.4,3.93840147]
[1739466740410,0.75758,2639.6,2639.5,0.75759]
[1739466741115,3.2078,2639.7,2639.2,0.00568548]
[1739466741414,0.7576,2639.6,2639.4,0.75763]
[1739466741612,3.2078,2639.7,2639.2,0.00568548]
[1739466741806,3.2078,2639.7,2639.6,0.75758]
[1739466742006,3.2078,2639.7,2639.2,0.00568548]
[1739466742214,3.96537,2639.7,2639.5,0.75759]
[1739466742513,3.2078,2639.7,2639.2,0.00568548]
[1739466742710,3.2078,2639.7,2639.6,0.75758]
[1739466744914,3.2078,2639.7,2639.2,1.89987548]
[1739466745113,3.2078,2639.7,2639.6,0.75758]
[1739466745503,3.2078,2639.7,2639.2,0.00568548]
[1739466745703,0.75759,2639.6,2639.2,0.00568548]
[1739466745915,3.2078,2639.7,2639.2,0.00568548]
[1739466746115,3.96537,2639.7,2639.5,0.75759]
[1739466746415,3.2078,2639.7,2639.2,0.00568548]
[1739466746719,0.75762,2639.5,2639.4,0.75763]
[1739466747209,0.75766,2639.3,2639.2,0.76336548]
[1739466747409,3.2078,2639.3,2639.2,0.00568548]
[1739466747612,3.2078,2639.3,2639.2,0.76337548]
[1739466748116,3.96546,2639.3,2639.2,0.00568548]
[1739466748313,3.2078,2639.3,2639.2,0.00568548]
[1739466748513,3.2078,2639.3,2639.2,0.76337548]
[1739466750821,3.96546,2639.3,2639.2,0.00568548]
[1739466751217,3.2078,2639.3,2639.2,0.76337548]
[1739466751517,3.96546,2639.3,2639.2,0.00568548]
[1739466752016,3.2078,2639.3,2639.2,0.76337548]
[1739466753521,3.2078,2639.7,2639.5,0.75758]
[1739466753721,0.75759,2639.6,2639.5,0.75758]
[1739466754123,3.96535,2639.7,2639.6,0.75758]
[1739466754320,3.2078,2639.7,2639.6,0.75758]
[1739466754526,4.3523,2640.1,2639.6,1.89395]
[1739466754716,0.75748,2640.0,2639.9,0.75746]
[1739466755619,0.75747,2640.0,2639.9,0.75748]
[1739466755825,4.3523,2640.1,2639.9,0.75748]
[1739466756026,4.3523,2640.1,2639.5,1.14]
[1739466756220,0.75758,2639.6,2639.5,1.8976]